[Event "*** Titled Tuesday Blitz"]
[Site "Chess.com"]
[Date "2021.02.02"]
[Round "7"]
[White "Vnebo"]
[Black "gilbert_gm"]
[Result "1-0"]
[WhiteElo "2730"]
[BlackElo "2534"]
[TimeControl "180+1"]
[EndTime "11:19:59 PST"]
[Termination "Vnebo won by resignation"]

1. c4 {[%clk 0:03:00.9]} 1... c6 {[%clk 0:02:05.5]} 2. d4 {[%clk 0:02:53.6]}
2... d5 {[%clk 0:02:06.4]} 3. Nf3 {[%clk 0:02:54.2]} 3... Nf6 {[%clk 0:02:06.5]}
4. Qb3 {[%clk 0:02:54.5]} 4... g6 {[%clk 0:02:04.9]} 5. Nc3 {[%clk 0:02:45.2]}
5... Bg7 {[%clk 0:02:03.2]} 6. Bf4 {[%clk 0:02:44.2]} 6... O-O {[%clk 0:01:59]}
7. e3 {[%clk 0:02:43.9]} 7... a5 {[%clk 0:01:58.3]} 8. cxd5 {[%clk 0:02:35.7]}
8... Nxd5 {[%clk 0:01:53.2]} 9. Nxd5 {[%clk 0:02:34.1]} 9... cxd5 {[%clk
0:01:54.1]} 10. Bb5 {[%clk 0:02:30.3]} 10... a4 {[%clk 0:01:50.3]} 11. Qb4
{[%clk 0:02:18.4]} 11... Qb6 {[%clk 0:01:36.1]} 12. Bxb8 {[%clk 0:01:57.4]}
12... Bd7 {[%clk 0:01:16.1]} 13. Be5 {[%clk 0:01:50.6]} 13... Bxb5 {[%clk
0:01:11.3]} 14. Bxg7 {[%clk 0:01:40.6]} 14... Kxg7 {[%clk 0:01:12.2]} 15. Rc1
{[%clk 0:01:39.6]} 15... Rfc8 {[%clk 0:00:46]} 16. Kd2 {[%clk 0:01:37.3]} 16...
Qa6 {[%clk 0:00:38.6]} 17. Qxe7 {[%clk 0:01:02.9]} 17... Qa5+ {[%clk 0:00:19]}
18. Rc3 {[%clk 0:00:54.4]} 18... a3 {[%clk 0:00:19.2]} 19. Qxa3 {[%clk
0:00:50.4]} 19... Rxc3 {[%clk 0:00:18.9]} 20. Qxc3 {[%clk 0:00:43.7]} 20... Qxa2
{[%clk 0:00:18.6]} 21. Rc1 {[%clk 0:00:41.7]} 21... Bc4 {[%clk 0:00:15.9]} 22.
Ne5 {[%clk 0:00:35.8]} 22... b5 {[%clk 0:00:11.7]} 23. Nc6 {[%clk 0:00:31.6]}
23... Qa6 {[%clk 0:00:06.7]} 24. Nb4 {[%clk 0:00:28]} 24... Qd6 {[%clk
0:00:06.2]} 25. b3 {[%clk 0:00:21.1]} 25... Qxh2 {[%clk 0:00:06.3]} 26. bxc4
{[%clk 0:00:20.8]} 26... Qxg2 {[%clk 0:00:06.7]} 27. Ke2 {[%clk 0:00:18.7]}
27... Qg4+ {[%clk 0:00:04.9]} 28. Ke1 {[%clk 0:00:17.6]} 28... Qg1+ {[%clk
0:00:04.4]} 29. Ke2 {[%clk 0:00:17.9]} 29... Qg4+ {[%clk 0:00:05]} 30. Kd2
{[%clk 0:00:18.4]} 30... Qg2 {[%clk 0:00:04.4]} 31. c5 {[%clk 0:00:17.1]} 31...
Qxf2+ {[%clk 0:00:04.3]} 32. Kd1 {[%clk 0:00:17.7]} 32... Qf1+ {[%clk
0:00:02.7]} 33. Kc2 {[%clk 0:00:17.3]} 33... Qf2+ {[%clk 0:00:02.6]} 34. Kb3
{[%clk 0:00:15.9]} 34... Ra4 {[%clk 0:00:02.8]} 35. c6 {[%clk 0:00:15.4]} 35...
Ra8 {[%clk 0:00:02.3]} 36. c7 {[%clk 0:00:15.4]} 36... Rc8 {[%clk 0:00:02.9]}
37. Nxd5 {[%clk 0:00:14.9]} 37... h5 {[%clk 0:00:03.2]} 38. Ne7 {[%clk
0:00:14.6]} 38... Rxc7 {[%clk 0:00:02.6]} 39. Qxc7 {[%clk 0:00:15]} 39... Qxe3+
{[%clk 0:00:03.3]} 40. Rc3 {[%clk 0:00:15.5]} 40... Qe6+ {[%clk 0:00:03.7]} 41.
d5 {[%clk 0:00:14.5]} 41... Qe1 {[%clk 0:00:04.6]} 42. Kb4 {[%clk 0:00:12.4]}
42... Qb1+ {[%clk 0:00:04.8]} 43. Rb3 {[%clk 0:00:09.6]} 43... Qe4+ {[%clk
0:00:05.2]} 44. Kxb5 {[%clk 0:00:09.1]} 44... h4 {[%clk 0:00:06.1]} 45. Qc3+
{[%clk 0:00:08.6]} 45... Kf8 {[%clk 0:00:05.7]} 46. Qe3 {[%clk 0:00:07.7]} 46...
Qc2 {[%clk 0:00:05.1]} 47. Nc6 {[%clk 0:00:05.7]} 47... h3 {[%clk 0:00:05]} 48.
Qxh3 {[%clk 0:00:05.4]} 48... Kg7 {[%clk 0:00:05.3]} 49. Qc3+ {[%clk 0:00:05]}
1-0

[Event "*** Titled Tuesday Blitz"]
[Site "Chess.com"]
[Date "2021.02.02"]
[Round "7"]
[White "Abdimalik_Abdisalimov"]
[Black "HouseOfDurin"]
[Result "0-1"]
[WhiteElo "2297"]
[BlackElo "2114"]
[TimeControl "180+1"]
[EndTime "11:19:59 PST"]
[Termination "HouseOfDurin won by checkmate"]

1. d4 {[%clk 0:03:00.9]} 1... Nf6 {[%clk 0:02:59.6]} 2. c4 {[%clk 0:03:01.3]}
2... c5 {[%clk 0:03:00.1]} 3. d5 {[%clk 0:03:00.8]} 3... b5 {[%clk 0:03:00.5]}
4. cxb5 {[%clk 0:03:00.7]} 4... a6 {[%clk 0:03:01.1]} 5. bxa6 {[%clk 0:03:00.9]}
5... Bxa6 {[%clk 0:03:02]} 6. Nc3 {[%clk 0:03:00.9]} 6... d6 {[%clk 0:03:02.5]}
7. e4 {[%clk 0:03:01]} 7... Bxf1 {[%clk 0:03:03.4]} 8. Kxf1 {[%clk 0:03:01.6]}
8... Nbd7 {[%clk 0:03:04.1]} 9. Nf3 {[%clk 0:03:02]} 9... g6 {[%clk 0:03:04.7]}
10. g3 {[%clk 0:03:02.6]} 10... Bg7 {[%clk 0:03:05.4]} 11. Kg2 {[%clk
0:03:03.2]} 11... O-O {[%clk 0:03:06.1]} 12. h3 {[%clk 0:02:57.9]} 12... Qa5
{[%clk 0:03:06.2]} 13. a4 {[%clk 0:02:50.5]} 13... Qb4 {[%clk 0:03:02.5]} 14.
Qe2 {[%clk 0:02:48.3]} 14... Rfb8 {[%clk 0:03:00.2]} 15. Bd2 {[%clk 0:02:14.8]}
15... Ne8 {[%clk 0:02:32.8]} 16. Rhb1 {[%clk 0:02:10.9]} 16... Ne5 {[%clk
0:02:08.9]} 17. Nxe5 {[%clk 0:02:03]} 17... Bxe5 {[%clk 0:02:09.6]} 18. Ra3
{[%clk 0:01:34.7]} 18... Bxc3 {[%clk 0:01:44.9]} 19. Bxc3 {[%clk 0:01:31.2]}
19... Qxa3 {[%clk 0:01:45.2]} 20. bxa3 {[%clk 0:01:30.6]} 20... Rxb1 {[%clk
0:01:46.1]} 21. a5 {[%clk 0:01:26.9]} 21... Rb3 {[%clk 0:01:28.8]} 22. Qc2
{[%clk 0:00:54.9]} 22... Rxa3 {[%clk 0:01:19.3]} 23. Qb2 {[%clk 0:00:55]} 23...
Ra4 {[%clk 0:01:18.1]} 24. f3 {[%clk 0:00:54.4]} 24... R4xa5 {[%clk 0:01:00.5]}
25. Bxa5 {[%clk 0:00:53.1]} 25... Rxa5 {[%clk 0:01:01.4]} 26. g4 {[%clk
0:00:48.9]} 26... Ra7 {[%clk 0:00:43.2]} 27. Qb8 {[%clk 0:00:47.8]} 27... Ra2+
{[%clk 0:00:41.1]} 28. Kg3 {[%clk 0:00:46.7]} 28... Kf8 {[%clk 0:00:41.7]} 29.
h4 {[%clk 0:00:40.7]} 29... h6 {[%clk 0:00:25.9]} 30. Qc8 {[%clk 0:00:28.3]}
30... Ra7 {[%clk 0:00:21.9]} 31. Kf4 {[%clk 0:00:25.1]} 31... Rc7 {[%clk
0:00:22.1]} 32. Qb8 {[%clk 0:00:23.7]} 32... c4 {[%clk 0:00:21.7]} 33. Qb2
{[%clk 0:00:22.4]} 33... c3 {[%clk 0:00:21.5]} 34. Qc2 {[%clk 0:00:21.1]} 34...
Nf6 {[%clk 0:00:15.5]} 35. g5 {[%clk 0:00:20.9]} 35... hxg5+ {[%clk 0:00:15.2]}
36. hxg5 {[%clk 0:00:21.8]} 36... Nd7 {[%clk 0:00:12.9]} 37. Ke3 {[%clk
0:00:20.9]} 37... Ne5 {[%clk 0:00:12.4]} 38. f4 {[%clk 0:00:21.4]} 38... Nd7
{[%clk 0:00:10.3]} 39. Kd4 {[%clk 0:00:12.6]} 39... Rc5 {[%clk 0:00:10.8]} 40.
Qh2 {[%clk 0:00:11.2]} 40... Kg7 {[%clk 0:00:10.8]} 41. Qh6+ {[%clk 0:00:11]}
41... Kg8 {[%clk 0:00:11.1]} 42. f5 {[%clk 0:00:06.5]} 42... c2 {[%clk
0:00:06.7]} 43. fxg6 {[%clk 0:00:05.3]} 43... fxg6 {[%clk 0:00:06.8]} 44. Qxg6+
{[%clk 0:00:04.9]} 44... Kf8 {[%clk 0:00:07.1]} 45. Qf5+ {[%clk 0:00:04.7]}
45... Ke8 {[%clk 0:00:06.1]} 46. Qg6+ {[%clk 0:00:04.5]} 46... Kd8 {[%clk
0:00:06.1]} 47. Qg8+ {[%clk 0:00:04]} 47... Kc7 {[%clk 0:00:06.3]} 48. Qa8
{[%clk 0:00:03.4]} 48... c1=Q {[%clk 0:00:06.8]} 49. Qa7+ {[%clk 0:00:03.4]}
49... Kc8 {[%clk 0:00:06.7]} 50. Qa8+ {[%clk 0:00:03.5]} 50... Nb8 {[%clk
0:00:07.1]} 51. Qa4 {[%clk 0:00:02.1]} 51... Qc3# {[%clk 0:00:07.2]} 0-1

[Event "*** Titled Tuesday Blitz"]
[Site "Chess.com"]
[Date "2021.02.02"]
[Round "7"]
[White "Isajevsky_Anton"]
[Black "Gusarov91"]
[Result "1-0"]
[WhiteElo "2533"]
[BlackElo "1256"]
[TimeControl "180+1"]
[EndTime "11:20:00 PST"]
[Termination "Isajevsky_Anton won by resignation"]

1. c4 {[%clk 0:03:00.9]} 1... Nf6 {[%clk 0:02:59.8]} 2. Nc3 {[%clk 0:03:00.5]}
2... d5 {[%clk 0:02:59.5]} 3. cxd5 {[%clk 0:03:00.2]} 3... Nxd5 {[%clk
0:03:00.4]} 4. Nf3 {[%clk 0:03:00.6]} 4... g6 {[%clk 0:03:00.5]} 5. Qb3 {[%clk
0:03:00.2]} 5... c6 {[%clk 0:02:58.8]} 6. e4 {[%clk 0:02:58.4]} 6... Nxc3 {[%clk
0:02:57.8]} 7. Qxc3 {[%clk 0:02:57.7]} 7... f6 {[%clk 0:02:57.9]} 8. d4 {[%clk
0:02:55.8]} 8... Bg7 {[%clk 0:02:57.8]} 9. Bc4 {[%clk 0:02:55.4]} 9... Bg4
{[%clk 0:02:57.3]} 10. Be3 {[%clk 0:02:52.2]} 10... Nd7 {[%clk 0:02:55.3]} 11.
Bb3 {[%clk 0:02:39.9]} 11... a5 {[%clk 0:02:50.5]} 12. a3 {[%clk 0:02:34.4]}
12... a4 {[%clk 0:02:50.1]} 13. Ba2 {[%clk 0:02:34.6]} 13... Qa5 {[%clk
0:02:50.7]} 14. Rc1 {[%clk 0:02:26.7]} 14... Bxf3 {[%clk 0:02:45.4]} 15. gxf3
{[%clk 0:02:26.2]} 15... Qxc3+ {[%clk 0:02:35.1]} 16. Rxc3 {[%clk 0:02:25.6]}
16... f5 {[%clk 0:02:34.6]} 17. e5 {[%clk 0:02:10.8]} 17... Nb6 {[%clk
0:02:32.3]} 18. Be6 {[%clk 0:02:02.3]} 18... Ra5 {[%clk 0:02:29.3]} 19. f4
{[%clk 0:01:57.7]} 19... Nd5 {[%clk 0:02:28.7]} 20. Rc5 {[%clk 0:01:56.9]} 20...
Rxc5 {[%clk 0:02:22.3]} 21. dxc5 {[%clk 0:01:56.6]} 21... Bh6 {[%clk 0:02:17.4]}
22. Bxd5 {[%clk 0:01:45.3]} 22... cxd5 {[%clk 0:02:17.5]} 23. e6 {[%clk
0:01:12.7]} 23... Bg7 {[%clk 0:02:03]} 24. Ke2 {[%clk 0:01:09.9]} 24... Rf8
{[%clk 0:01:46.9]} 25. Kd3 {[%clk 0:01:08.9]} 25... Kd8 {[%clk 0:01:38.2]} 26.
Bd4 {[%clk 0:01:04.9]} 26... Bh6 {[%clk 0:01:35.5]} 27. Be5 {[%clk 0:01:04.1]}
27... g5 {[%clk 0:01:36]} 28. fxg5 {[%clk 0:00:45.9]} 28... Bxg5 {[%clk
0:01:36]} 29. Rg1 {[%clk 0:00:46.5]} 29... Bf6 {[%clk 0:01:36.5]} 30. Kd4 {[%clk
0:00:46.8]} 30... f4 {[%clk 0:01:32.9]} 31. Kxd5 {[%clk 0:00:45.4]} 31... f3
{[%clk 0:01:32.7]} 32. Rg4 {[%clk 0:00:38.3]} 32... Kc8 {[%clk 0:01:30.2]} 33.
Bxf6 {[%clk 0:00:33.3]} 33... Rxf6 {[%clk 0:01:29.9]} 34. Rg7 {[%clk 0:00:30.7]}
34... Rf5+ {[%clk 0:01:29.7]} 35. Kd4 {[%clk 0:00:24.6]} 35... Kd8 {[%clk
0:01:27.4]} 36. Rxh7 {[%clk 0:00:24.1]} 36... Rf4+ {[%clk 0:01:27.9]} 37. Ke3
{[%clk 0:00:22.6]} 37... Rc4 {[%clk 0:01:27.3]} 38. Rh5 {[%clk 0:00:18.4]} 38...
Rc2 {[%clk 0:01:27.1]} 39. Kxf3 {[%clk 0:00:18.8]} 39... Rxb2 {[%clk 0:01:27.2]}
40. Rd5+ {[%clk 0:00:16.4]} 40... Ke8 {[%clk 0:01:26.8]} 41. Ke3 {[%clk
0:00:16.3]} 41... Rb3+ {[%clk 0:01:25.1]} 42. Rd3 {[%clk 0:00:16.6]} 42... Rb1
{[%clk 0:01:25.4]} 43. Ke4 {[%clk 0:00:13.3]} 43... Rh1 {[%clk 0:01:24.1]} 44.
h3 {[%clk 0:00:13]} 44... Rc1 {[%clk 0:01:22.2]} 45. Kd5 {[%clk 0:00:12.8]}
45... Kd8 {[%clk 0:01:21.6]} 46. Rd4 {[%clk 0:00:09.1]} 46... Rc3 {[%clk
0:01:17.6]} 47. Rxa4 {[%clk 0:00:08.5]} 47... Rxh3 {[%clk 0:01:17.7]} 48. f4
{[%clk 0:00:09]} 48... Rh5+ {[%clk 0:01:16.4]} 49. Kd4 {[%clk 0:00:09.4]} 49...
Rf5 {[%clk 0:01:15.7]} 50. Ra8+ {[%clk 0:00:04.7]} 50... Kc7 {[%clk 0:01:16.2]}
51. Re8 {[%clk 0:00:05.1]} 51... Rxf4+ {[%clk 0:01:16.5]} 52. Ke5 {[%clk
0:00:05.3]} 52... Rf1 {[%clk 0:01:15.7]} 53. Rxe7+ {[%clk 0:00:05.7]} 53... Kc6
{[%clk 0:01:16.4]} 54. Rf7 {[%clk 0:00:04.8]} 54... Re1+ {[%clk 0:01:16.6]} 55.
Kf5 {[%clk 0:00:04.6]} 55... Kxc5 {[%clk 0:01:16]} 56. Rxb7 {[%clk 0:00:04.4]}
56... Rf1+ {[%clk 0:01:12.7]} 57. Ke5 {[%clk 0:00:04.8]} 57... Re1+ {[%clk
0:01:12.8]} 58. Kf6 {[%clk 0:00:05.3]} 58... Kc6 {[%clk 0:01:13.4]} 59. Rd7
{[%clk 0:00:03.1]} 59... Rf1+ {[%clk 0:01:13.2]} 60. Ke7 {[%clk 0:00:03.1]}
60... Rf3 {[%clk 0:01:13.8]} 61. a4 {[%clk 0:00:02]} 61... Rh3 {[%clk
0:01:13.5]} 62. Rd1 {[%clk 0:00:02.1]} 62... Rh7+ {[%clk 0:01:12.8]} 63. Kf6
{[%clk 0:00:02.6]} 63... Rh6+ {[%clk 0:01:13.3]} 64. Kf7 {[%clk 0:00:03.1]}
64... Rh7+ {[%clk 0:01:11.6]} 65. Kg6 {[%clk 0:00:03.4]} 65... Rh2 {[%clk
0:01:09.5]} 66. e7 {[%clk 0:00:03.9]} 66... Rg2+ {[%clk 0:01:09.7]} 67. Kf7
{[%clk 0:00:04.5]} 67... Rf2+ {[%clk 0:01:10.1]} 68. Ke8 {[%clk 0:00:05.1]}
68... Kc7 {[%clk 0:01:09.1]} 69. Rc1+ {[%clk 0:00:05.4]} 69... Kb7 {[%clk
0:01:08.3]} 70. Rc4 {[%clk 0:00:05.5]} 70... Rf5 {[%clk 0:01:07.2]} 71. Kd7
{[%clk 0:00:05.7]} 71... Rd5+ {[%clk 0:01:06.5]} 72. Ke6 {[%clk 0:00:05.7]}
72... Rd1 {[%clk 0:01:06.5]} 73. e8=Q {[%clk 0:00:05.9]} 73... Re1+ {[%clk
0:01:07]} 74. Kf7 {[%clk 0:00:06.4]} 74... Rxe8 {[%clk 0:01:07.9]} 75. Kxe8
{[%clk 0:00:06.9]} 1-0

[Event "*** Titled Tuesday Blitz"]
[Site "Chess.com"]
[Date "2021.02.02"]
[Round "7"]
[White "fridaywins"]
[Black "shaheus"]
[Result "0-1"]
[WhiteElo "2159"]
[BlackElo "2406"]
[TimeControl "180+1"]
[EndTime "11:20:00 PST"]
[Termination "shaheus won by resignation"]

1. e4 {[%clk 0:03:00.9]} 1... c5 {[%clk 0:02:59.5]} 2. Nf3 {[%clk 0:02:59.4]}
2... Nc6 {[%clk 0:02:59.5]} 3. Bb5 {[%clk 0:02:58.8]} 3... g6 {[%clk 0:02:59]}
4. Bxc6 {[%clk 0:02:58.1]} 4... bxc6 {[%clk 0:02:58.9]} 5. Nc3 {[%clk 0:02:59]}
5... Bg7 {[%clk 0:02:59.2]} 6. d3 {[%clk 0:02:59.1]} 6... Nh6 {[%clk 0:02:51.4]}
7. h3 {[%clk 0:02:58]} 7... O-O {[%clk 0:02:49.9]} 8. Be3 {[%clk 0:02:55.2]}
8... f5 {[%clk 0:02:45.6]} 9. Bxc5 {[%clk 0:02:50.2]} 9... d6 {[%clk 0:02:43.7]}
10. Be3 {[%clk 0:02:42.2]} 10... fxe4 {[%clk 0:02:40.8]} 11. dxe4 {[%clk
0:02:37.5]} 11... Qa5 {[%clk 0:02:31.9]} 12. Qd2 {[%clk 0:02:36.9]} 12... Nf7
{[%clk 0:02:31.8]} 13. Bd4 {[%clk 0:02:28]} 13... e5 {[%clk 0:02:16]} 14. Be3
{[%clk 0:02:28]} 14... Be6 {[%clk 0:02:15.8]} 15. Nd1 {[%clk 0:02:27.8]} 15...
Qc7 {[%clk 0:02:11.8]} 16. Ng5 {[%clk 0:02:03.9]} 16... Nxg5 {[%clk 0:01:57.3]}
17. Bxg5 {[%clk 0:02:03.8]} 17... d5 {[%clk 0:01:57.3]} 18. O-O {[%clk 0:01:50]}
18... d4 {[%clk 0:01:27.8]} 19. b3 {[%clk 0:01:39.8]} 19... c5 {[%clk
0:01:26.9]} 20. c4 {[%clk 0:01:29]} 20... Rf7 {[%clk 0:01:21.6]} 21. Nb2 {[%clk
0:01:23.1]} 21... Qd7 {[%clk 0:01:02.3]} 22. f3 {[%clk 0:00:58.5]} 22... Raf8
{[%clk 0:00:44.8]} 23. Nd3 {[%clk 0:00:51.7]} 23... Qd6 {[%clk 0:00:41.3]} 24.
b4 {[%clk 0:00:28.7]} 24... Bxc4 {[%clk 0:00:36.9]} 25. bxc5 {[%clk 0:00:25.1]}
25... Qe6 {[%clk 0:00:33.7]} 26. Rfc1 {[%clk 0:00:23.2]} 26... Bf6 {[%clk
0:00:20.5]} 27. Bxf6 {[%clk 0:00:21.7]} 27... Rxf6 {[%clk 0:00:20.4]} 28. Nf2
{[%clk 0:00:21.8]} 28... a6 {[%clk 0:00:15.9]} 29. Ng4 {[%clk 0:00:20.6]} 29...
Rf4 {[%clk 0:00:12.6]} 30. Qb4 {[%clk 0:00:21.5]} 30... Bb5 {[%clk 0:00:11.2]}
31. c6 {[%clk 0:00:21]} 31... Rc8 {[%clk 0:00:09.2]} 32. c7 {[%clk 0:00:20.7]}
32... Rf7 {[%clk 0:00:08.1]} 33. Qc5 {[%clk 0:00:20.5]} 33... Qe7 {[%clk
0:00:05.7]} 34. Qxe5 {[%clk 0:00:20.2]} 34... Qxe5 {[%clk 0:00:05.1]} 35. Nxe5
{[%clk 0:00:20.2]} 35... Rfxc7 {[%clk 0:00:05.7]} 36. Rxc7 {[%clk 0:00:19.5]}
36... Rxc7 {[%clk 0:00:06.1]} 37. f4 {[%clk 0:00:18.4]} 37... d3 {[%clk
0:00:05.7]} 38. Nf3 {[%clk 0:00:18.1]} 38... Rc2 {[%clk 0:00:04.9]} 39. Rd1
{[%clk 0:00:17.9]} 39... Rxa2 {[%clk 0:00:04.5]} 40. Rd2 {[%clk 0:00:18.3]}
40... Rxd2 {[%clk 0:00:04.1]} 41. Nxd2 {[%clk 0:00:18]} 41... a5 {[%clk
0:00:04.6]} 42. Kf2 {[%clk 0:00:18.9]} 42... a4 {[%clk 0:00:04.9]} 43. Ke3
{[%clk 0:00:18.3]} 43... a3 {[%clk 0:00:05.2]} 44. Nb3 {[%clk 0:00:18.3]} 44...
a2 {[%clk 0:00:04.8]} 45. Na1 {[%clk 0:00:19.1]} 45... Kf7 {[%clk 0:00:04.2]}
46. g4 {[%clk 0:00:19.6]} 46... Ke6 {[%clk 0:00:04.5]} 47. h4 {[%clk 0:00:19.9]}
47... Kd6 {[%clk 0:00:03.9]} 48. h5 {[%clk 0:00:20]} 48... gxh5 {[%clk 0:00:04]}
49. gxh5 {[%clk 0:00:20]} 49... Kc5 {[%clk 0:00:04.3]} 50. f5 {[%clk 0:00:20.1]}
50... Kc4 {[%clk 0:00:03.8]} 51. f6 {[%clk 0:00:20.2]} 51... Be8 {[%clk
0:00:01.6]} 52. h6 {[%clk 0:00:16.4]} 52... Bf7 {[%clk 0:00:01.9]} 53. e5 {[%clk
0:00:15.2]} 53... Kc3 {[%clk 0:00:02.2]} 0-1

[Event "*** Titled Tuesday Blitz"]
[Site "Chess.com"]
[Date "2021.02.02"]
[Round "7"]
[White "FontVella8"]
[Black "ChessLover0108"]
[Result "0-1"]
[WhiteElo "2585"]
[BlackElo "2841"]
[TimeControl "180+1"]
[EndTime "11:20:01 PST"]
[Termination "ChessLover0108 won by resignation"]

1. e4 {[%clk 0:02:38.1]} 1... c5 {[%clk 0:02:56.2]} 2. Nf3 {[%clk 0:02:37.2]}
2... d6 {[%clk 0:02:56.7]} 3. d4 {[%clk 0:02:37.5]} 3... cxd4 {[%clk 0:02:57.6]}
4. Nxd4 {[%clk 0:02:38.2]} 4... Nf6 {[%clk 0:02:58.1]} 5. f3 {[%clk 0:02:38.3]}
5... a6 {[%clk 0:02:59]} 6. c4 {[%clk 0:02:37.5]} 6... Nbd7 {[%clk 0:02:57.7]}
7. Nc3 {[%clk 0:02:37.5]} 7... e6 {[%clk 0:02:58.2]} 8. Be3 {[%clk 0:02:38]}
8... b6 {[%clk 0:02:58.5]} 9. Qd2 {[%clk 0:02:37.3]} 9... Bb7 {[%clk 0:02:58.6]}
10. Be2 {[%clk 0:02:38]} 10... Be7 {[%clk 0:02:59.2]} 11. O-O {[%clk 0:02:38.6]}
11... O-O {[%clk 0:03:00.1]} 12. Rac1 {[%clk 0:02:39.1]} 12... Rc8 {[%clk
0:03:00.6]} 13. Rfd1 {[%clk 0:02:37.8]} 13... Qc7 {[%clk 0:03:00.6]} 14. b4
{[%clk 0:02:27.8]} 14... Qb8 {[%clk 0:02:58.4]} 15. a3 {[%clk 0:02:27.6]} 15...
Rfe8 {[%clk 0:02:50.8]} 16. Kh1 {[%clk 0:02:23.7]} 16... Bf8 {[%clk 0:02:47.4]}
17. Bf1 {[%clk 0:02:21.2]} 17... h6 {[%clk 0:02:43]} 18. Nb3 {[%clk 0:02:18.1]}
18... Ne5 {[%clk 0:02:34.7]} 19. Na4 {[%clk 0:02:13.3]} 19... b5 {[%clk
0:02:30]} 20. cxb5 {[%clk 0:02:09.1]} 20... axb5 {[%clk 0:02:30.7]} 21. Bxb5
{[%clk 0:02:04.7]} 21... Red8 {[%clk 0:01:52.6]} 22. Rxc8 {[%clk 0:02:00.5]}
22... Rxc8 {[%clk 0:01:51.5]} 23. Nb6 {[%clk 0:02:00.8]} 23... Rc7 {[%clk
0:01:47.4]} 24. Na5 {[%clk 0:01:18.7]} 24... d5 {[%clk 0:01:36.6]} 25. Nxb7
{[%clk 0:01:07.9]} 25... Rxb7 {[%clk 0:01:37.5]} 26. Qd4 {[%clk 0:00:47.4]}
26... dxe4 {[%clk 0:01:20.7]} 27. Ba6 {[%clk 0:00:47.7]} 27... Ra7 {[%clk
0:01:10.1]} 28. Nc4 {[%clk 0:00:35.4]} 28... Rxa6 {[%clk 0:00:55.3]} 29. Nxe5
{[%clk 0:00:33.8]} 29... exf3 {[%clk 0:00:55.1]} 30. gxf3 {[%clk 0:00:17.7]}
30... Rxa3 {[%clk 0:00:53.6]} 31. Rb1 {[%clk 0:00:15.3]} 31... Nd5 {[%clk
0:00:51.7]} 32. Bc1 {[%clk 0:00:09.7]} 32... Ra2 {[%clk 0:00:50.6]} 33. b5
{[%clk 0:00:08.6]} 33... Bc5 {[%clk 0:00:40.6]} 34. Qc4 {[%clk 0:00:04.3]} 34...
Qxe5 {[%clk 0:00:30]} 35. Qxa2 {[%clk 0:00:04.2]} 35... Qe1+ {[%clk 0:00:30.3]}
36. Kg2 {[%clk 0:00:04.7]} 36... Nc3 {[%clk 0:00:30]} 37. Qc2 {[%clk 0:00:02.5]}
37... Qg1+ {[%clk 0:00:28.1]} 38. Kh3 {[%clk 0:00:02.4]} 38... Nxb1 {[%clk
0:00:29]} 39. Qxb1 {[%clk 0:00:02.9]} 39... Qf1+ {[%clk 0:00:27.2]} 40. Kg4
{[%clk 0:00:02.1]} 40... f5+ {[%clk 0:00:24.2]} 41. Kf4 {[%clk 0:00:02.1]} 41...
Bd6+ {[%clk 0:00:18.4]} 42. Ke3 {[%clk 0:00:02.6]} 42... Qe1+ {[%clk 0:00:17.6]}
43. Kd3 {[%clk 0:00:02.8]} 43... Bf4 {[%clk 0:00:14.1]} 44. b6 {[%clk
0:00:01.7]} 44... Qxc1 {[%clk 0:00:10.1]} 45. Qb3 {[%clk 0:00:02.1]} 45... Qe3+
{[%clk 0:00:09.8]} 46. Kc4 {[%clk 0:00:02.4]} 46... Qxb3+ {[%clk 0:00:10.7]} 47.
Kxb3 {[%clk 0:00:02.6]} 47... Kf7 {[%clk 0:00:11.6]} 48. Kc4 {[%clk 0:00:03]}
48... Bxh2 {[%clk 0:00:12.4]} 49. b7 {[%clk 0:00:03.9]} 49... Bb8 {[%clk
0:00:12.8]} 50. Kc5 {[%clk 0:00:03.8]} 50... g5 {[%clk 0:00:13.7]} 51. Kc6
{[%clk 0:00:04.7]} 51... Ke7 {[%clk 0:00:14.1]} 52. f4 {[%clk 0:00:04.5]} 52...
g4 {[%clk 0:00:14.6]} 0-1

[Event "*** Titled Tuesday Blitz"]
[Site "Chess.com"]
[Date "2021.02.02"]
[Round "7"]
[White "Tenamu"]
[Black "FGHSMN"]
[Result "0-1"]
[WhiteElo "2407"]
[BlackElo "2640"]
[TimeControl "180+1"]
[EndTime "11:20:02 PST"]
[Termination "FGHSMN won by checkmate"]

1. d4 {[%clk 0:03:00.9]} 1... Nf6 {[%clk 0:02:59.3]} 2. Nc3 {[%clk 0:03:00.8]}
2... d5 {[%clk 0:02:58.4]} 3. Bf4 {[%clk 0:03:00.4]} 3... c5 {[%clk 0:02:53.4]}
4. e3 {[%clk 0:03:00.1]} 4... e6 {[%clk 0:02:52.3]} 5. Nb5 {[%clk 0:02:58.2]}
5... Na6 {[%clk 0:02:50.6]} 6. c3 {[%clk 0:02:58.4]} 6... Be7 {[%clk 0:02:49.1]}
7. Nf3 {[%clk 0:02:58.4]} 7... O-O {[%clk 0:02:44.9]} 8. Be2 {[%clk 0:02:58.3]}
8... Bd7 {[%clk 0:02:44.2]} 9. O-O {[%clk 0:02:56.6]} 9... Qb6 {[%clk
0:02:34.8]} 10. a4 {[%clk 0:02:55.9]} 10... c4 {[%clk 0:02:33.7]} 11. Qc2 {[%clk
0:02:50.4]} 11... Bxb5 {[%clk 0:02:22.2]} 12. axb5 {[%clk 0:02:51.3]} 12... Qxb5
{[%clk 0:02:23.1]} 13. Nd2 {[%clk 0:02:49.8]} 13... Rac8 {[%clk 0:02:17.8]} 14.
Rfb1 {[%clk 0:02:40.9]} 14... h6 {[%clk 0:02:16.2]} 15. h3 {[%clk 0:02:34.8]}
15... Rfd8 {[%clk 0:02:14.1]} 16. Bg3 {[%clk 0:02:15.8]} 16... Bd6 {[%clk
0:02:08.7]} 17. f4 {[%clk 0:02:15.9]} 17... Qc6 {[%clk 0:02:03]} 18. Ra2 {[%clk
0:02:09.9]} 18... Ne4 {[%clk 0:01:53.5]} 19. Nxe4 {[%clk 0:02:07.5]} 19... dxe4
{[%clk 0:01:54.4]} 20. Bh4 {[%clk 0:02:04.9]} 20... Rd7 {[%clk 0:01:51.4]} 21.
Rba1 {[%clk 0:02:00.8]} 21... Rdc7 {[%clk 0:01:27.7]} 22. g4 {[%clk 0:01:50.8]}
22... f5 {[%clk 0:01:24.8]} 23. gxf5 {[%clk 0:01:38.1]} 23... exf5 {[%clk
0:01:25.7]} 24. Ra5 {[%clk 0:01:37.1]} 24... Be7 {[%clk 0:01:18.4]} 25. Bf2
{[%clk 0:01:28.8]} 25... Rf8 {[%clk 0:01:03.6]} 26. Kh2 {[%clk 0:01:22.9]} 26...
Qd6 {[%clk 0:00:56.7]} 27. R5a4 {[%clk 0:01:12.3]} 27... Qe6 {[%clk 0:00:52.1]}
28. Rg1 {[%clk 0:01:08.3]} 28... Kh7 {[%clk 0:00:49.8]} 29. Ra5 {[%clk
0:01:03.8]} 29... Bd6 {[%clk 0:00:46.8]} 30. h4 {[%clk 0:00:57.2]} 30... Rg8
{[%clk 0:00:36.4]} 31. h5 {[%clk 0:00:48.8]} 31... g5 {[%clk 0:00:33.3]} 32.
hxg6+ {[%clk 0:00:49.1]} 32... Rxg6 {[%clk 0:00:32.9]} 33. Rxg6 {[%clk 0:00:41]}
33... Qxg6 {[%clk 0:00:33.8]} 34. Qd1 {[%clk 0:00:37.1]} 34... Rg7 {[%clk
0:00:28]} 35. Qf1 {[%clk 0:00:35.2]} 35... Nc7 {[%clk 0:00:21.2]} 36. Qh3 {[%clk
0:00:33.7]} 36... b5 {[%clk 0:00:13.4]} 37. Rxa7 {[%clk 0:00:28.4]} 37... Nd5
{[%clk 0:00:13.3]} 38. Rxg7+ {[%clk 0:00:28.1]} 38... Kxg7 {[%clk 0:00:14.2]}
39. Bh5 {[%clk 0:00:22.1]} 39... Qe6 {[%clk 0:00:13.7]} 40. Qg3+ {[%clk
0:00:21.5]} 40... Kh7 {[%clk 0:00:13]} 41. Be2 {[%clk 0:00:21.7]} 41... Nf6
{[%clk 0:00:12.4]} 42. Qh4 {[%clk 0:00:18.6]} 42... Be7 {[%clk 0:00:10.6]} 43.
Qh3 {[%clk 0:00:18.2]} 43... Kg6 {[%clk 0:00:08.4]} 44. Kg2 {[%clk 0:00:17.5]}
44... Ng4 {[%clk 0:00:08.1]} 45. Bg1 {[%clk 0:00:16.9]} 45... h5 {[%clk
0:00:08.1]} 46. Qg3 {[%clk 0:00:16.7]} 46... h4 {[%clk 0:00:07.6]} 47. Qe1
{[%clk 0:00:16.9]} 47... Kg7 {[%clk 0:00:04.2]} 48. Kh3 {[%clk 0:00:16.9]} 48...
Qg6 {[%clk 0:00:04.1]} 49. Qa1 {[%clk 0:00:15.2]} 49... Nxe3 {[%clk 0:00:03.4]}
50. Bf2 {[%clk 0:00:13.1]} 50... Qg2# {[%clk 0:00:02.8]} 0-1